bitfinex/quotes_SOLUSD_20240616
["timestamp","ask_amount","ask_price","bid_price","bid_amount"]
[1718501622058,25.5675,144.72,144.67,16.5135]
[1718501622528,2.5568,144.72,144.67,16.5135]
[1718501622729,25.7354,144.73,144.67,16.5135]
[1718501623727,2.5566,144.72,144.67,16.5135]
[1718501624253,25.5655,144.73,144.67,16.5135]
[1718501624451,7.6697,144.73,144.67,16.5135]
[1718501625362,15.3391,144.73,144.67,16.5135]
[1718501625554,25.565,144.73,144.67,16.5135]
[1718501626351,2.5566,144.72,144.67,16.5135]
[1718501628449,25.565,144.73,144.67,16.5135]
[1718501629267,7.6697,144.73,144.67,16.5135]
[1718501630768,2.5566,144.72,144.67,16.5135]
[1718501633045,15.3398,144.72,144.67,16.5135]
[1718501633438,7.6699,144.72,144.67,16.5135]
[1718501634258,25.5691,144.71,144.65,6.5017]
[1718501634448,2.5569,144.71,144.65,6.5017]
[1718501634640,42.4258,144.73,144.65,6.5017]
[1718501634844,2.8966,144.72,144.65,6.5017]
[1718501635045,2.7265,144.73,144.65,6.5017]
[1718501635250,0.17,144.73,144.65,6.5017]
[1718501635452,20.68,144.73,144.65,6.5017]
[1718501635650,23.2365,144.73,144.65,6.5017]
[1718501635855,8.3494,144.73,144.65,6.5017]
[1718501636676,2.5566,144.72,144.65,6.5017]
[1718501639070,5.62,144.7,144.65,6.5017]
[1718501640276,0.17,144.73,144.65,6.5017]
[1718501640476,5.62,144.72,144.66,16.2953]
[1718501640680,5.62,144.72,144.66,21.9153]
[1718501641550,5.62,144.71,144.66,16.2953]
[1718501642276,5.62,144.7,144.66,16.2953]
[1718501642713,5.62,144.69,144.66,16.2953]
[1718501645090,5.62,144.68,144.66,16.2953]
[1718501645296,5.62,144.67,144.65,6.5017]
[1718501645471,5.62,144.67,144.63,16.2953]
[1718501645472,5.62,144.66,144.63,16.2953]
[1718501646278,5.62,144.65,144.63,16.2953]
[1718501646481,2.5576,144.67,144.63,16.2953]
[1718501646686,5.62,144.64,144.63,16.2953]
[1718501650777,5.62,144.64,144.59,16.2765]
[1718501650980,5.62,144.61,144.59,16.2765]
[1718501652391,5.62,144.62,144.59,16.2765]
[1718501653776,5.62,144.61,144.59,16.2765]
[1718501654699,5.62,144.6,144.59,16.2765]
[1718501656475,17.9031,144.67,144.59,16.2765]
[1718501656703,5.62,144.62,144.59,16.2765]
[1718501658193,3.0678,144.66,144.59,16.2765]
[1718501658510,5.62,144.62,144.59,16.2765]
[1718501661404,5.62,144.61,144.59,16.2765]
[1718501662204,5.62,144.62,144.59,16.2765]
[1718501662581,5.62,144.63,144.59,16.2765]
[1718501663799,45.3258993,144.69,144.59,16.2765]
[1718501663990,5.62,144.65,144.6,5.62]
[1718501664703,2.5575,144.68,144.6,5.62]
[1718501664704,5.62,144.66,144.6,5.62]
[1718501668010,15.6753,144.72,144.59,16.4465]
[1718501668218,5.62,144.69,144.64,16.2765]
[1718501669195,8.1771,144.69,144.64,16.2765]
[1718501669707,5.62,144.68,144.64,16.2765]
[1718501672013,39.72870595,144.75,144.64,16.2765]
[1718501672014,5.62,144.67,144.64,16.2765]
[1718501672231,5.1144,144.69,144.64,16.2765]
[1718501672232,5.62,144.65,144.64,16.2765]
[1718501674825,5.62,144.65,144.63,6.6034]
[1718501677607,5.62,144.66,144.63,6.6034]
[1718501679426,5.62,144.68,144.63,12.2234]
[1718501679917,25.9058,144.73,144.63,12.2234]
[1718501680129,2.5565,144.73,144.64,5.62]
[1718501680291,5.62,144.7,144.64,5.62]
[1718501681122,5.62,144.7,144.65,5.62]
[1718501681299,5.62,144.7,144.63,6.6034]
[1718501681510,5.62,144.7,144.64,5.62]
[1718501682538,5.62,144.69,144.64,5.62]
[1718501683620,2.5567,144.72,144.64,5.62]
[1718501683848,5.62,144.7,144.65,5.62]
[1718501683994,2.5565,144.73,144.66,22.68464541]
[1718501684195,5.62,144.71,144.66,22.68464541]
[1718501684732,5.62,144.72,144.66,22.68464541]
[1718501684915,5.62,144.72,144.67,1.38084995]
[1718501685112,5.62,144.71,144.67,1.38084995]
[1718501687713,2.5565,144.73,144.67,1.38084995]
[1718501687925,5.62,144.72,144.67,1.38084995]
[1718501688124,5.62,144.72,144.67,7.00084995]
[1718501688311,5.62,144.72,144.68,1.3807545]
[1718501688817,5.62,144.72,144.67,5.62]
[1718501689029,5.62,144.73,144.67,5.62]
[1718501689541,2.5563,144.74,144.67,5.62]
[1718501689835,5.62,144.73,144.67,5.62]
[1718501690535,2.5562,144.75,144.68,5.79]
[1718501690842,17.8898,144.78,144.7,5.62]
[1718501691135,5.62,144.75,144.69,12.1377]
[1718501691360,5.62,144.74,144.69,12.1377]
[1718501693618,7.6675,144.77,144.7,5.62]
[1718501693941,5.62,144.76,144.7,5.62]
[1718501694112,7.6675,144.77,144.7,5.62]
[1718501694435,7.6675,144.77,144.69,6.5177]
[1718501694436,2.5558,144.77,144.71,20.9807]
[1718501694739,13.2873,144.77,144.71,20.9807]
[1718501696015,20.9546,144.77,144.71,20.9807]
[1718501696210,15.3346,144.77,144.71,20.9807]
[1718501696430,5.62,144.76,144.71,20.9807]
[1718501697422,7.6674,144.77,144.71,20.9807]
[1718501697817,5.62,144.76,144.71,20.9807]
[1718501698333,8.1759,144.77,144.71,20.9807]
[1718501698534,7.6674,144.77,144.71,20.9807]
[1718501698711,13.2874,144.77,144.71,20.9807]
[1718501699138,20.9547,144.77,144.71,20.9807]
[1718501699436,28.6221,144.77,144.71,20.9807]
[1718501699614,31.178,144.77,144.71,20.9807]
[1718501700240,2.5559,144.76,144.71,20.9807]
[1718501701139,31.178,144.77,144.71,20.9807]
[1718501701942,48.49501511,144.83,144.71,20.9807]
[1718501701943,5.62,144.78,144.73,5.62]
[1718501702243,13.2863,144.79,144.73,5.62]
[1718501702541,5.62,144.78,144.73,5.62]
[1718501702760,5.62,144.77,144.72,0.34]
[1718501702939,5.62,144.76,144.71,15.3607]
[1718501703144,5.62,144.75,144.71,15.3607]
[1718501705041,5.62,144.76,144.71,15.3607]
[1718501711170,5.62,144.72,144.69,6.5177]
[1718501711578,5.62,144.74,144.69,6.5177]
[1718501711736,5.62,144.73,144.69,6.5177]
[1718501712359,2.5558,144.77,144.69,6.5177]
[1718501712360,5.62,144.74,144.69,6.5177]
[1718501713383,5.62,144.73,144.69,6.5177]
[1718501713684,5.62,144.72,144.69,6.5177]
[1718501714480,5.62,144.7,144.67,15.8535]
[1718501716152,5.62,144.71,144.67,15.8535]
[1718501717052,5.62,144.73,144.67,21.4735]
[1718501718488,23.0071,144.74,144.67,15.8535]
[1718501718789,5.62,144.7,144.67,15.8535]
[1718501719359,5.62,144.71,144.67,15.8535]
[1718501720379,5.62,144.72,144.67,15.8535]
[1718501720562,7.6687,144.75,144.67,15.8535]
[1718501720761,5.62,144.72,144.67,15.8535]
[1718501722381,5.62,144.7,144.67,15.8535]
[1718501722599,5.1126,144.74,144.67,15.8535]
[1718501722600,5.62,144.69,144.67,15.8535]
[1718501722758,7.6704,144.71,144.64,6.3141]
[1718501722958,5.62,144.67,144.64,6.3141]
[1718501724371,5.62,144.68,144.64,6.3141]
[1718501724885,5.62,144.67,144.64,6.3141]
[1718501725096,5.62,144.67,144.63,15.8535]
[1718501725263,5.62,144.66,144.63,15.8535]
[1718501728472,5.62,144.65,144.6,22.1676]
[1718501729874,5.62,144.66,144.61,0.17]
[1718501730067,5.62,144.67,144.61,5.96]
[1718501731480,2.5567,144.72,144.61,5.96]
[1718501731675,5.62,144.69,144.63,5.62]
[1718501731877,5.62,144.68,144.62,5.96]
[1718501735190,15.7609,144.73,144.62,5.96]
[1718501735380,2.5566,144.73,144.65,5.62]
[1718501735580,5.62,144.7,144.65,5.62]
[1718501735896,5.62,144.7,144.64,5.62]
[1718501736598,5.62,144.69,144.64,5.62]
[1718501737307,2.5568,144.72,144.64,5.62]
[1718501737500,5.62,144.7,144.65,6.6173]
[1718501738582,7.6689,144.74,144.66,5.79]
[1718501738788,5.62,144.72,144.66,5.79]
[1718501738982,5.62,144.71,144.66,5.79]
[1718501739199,5.62,144.71,144.66,0.17]
[1718501739386,5.62,144.7,144.65,12.2373]
[1718501739590,7.6694,144.73,144.65,6.6173]
[1718501739790,5.62,144.7,144.65,6.6173]
[1718501741103,5.62,144.68,144.65,6.6173]
[1718501742701,2.5568,144.72,144.65,6.6173]
[1718501742904,5.62,144.69,144.65,6.6173]
[1718501743105,5.62,144.7,144.65,6.6173]
[1718501744181,5.62,144.71,144.65,12.2373]
[1718501744381,5.62,144.7,144.65,12.2373]
[1718501747405,5.62,144.7,144.65,6.6173]
[1718501747589,5.62,144.69,144.65,6.6173]
[1718501749023,5.62,144.68,144.65,6.6173]
[1718501749514,5.62,144.68,144.63,15.8676]
[1718501749697,5.62,144.67,144.63,15.8676]
[1718501750502,23.0126,144.71,144.63,15.8676]
[1718501750708,5.62,144.66,144.63,15.8676]
[1718501751083,5.62,144.65,144.63,15.8676]
[1718501751290,5.62,144.65,144.62,6.6173]
[1718501752218,5.62,144.66,144.62,6.6173]
[1718501752396,15.061,144.76,144.63,15.1092]
[1718501752587,5.62,144.69,144.63,20.7292]
[1718501754703,5.62,144.7,144.63,20.7292]
[1718501755987,5.62,144.69,144.63,15.1092]
[1718501756192,5.62,144.68,144.63,15.1092]
[1718501757587,5.62,144.7,144.63,20.7292]
[1718501757915,5.62,144.7,144.64,5.62]
[1718501762218,5.62,144.7,144.63,15.1092]
[1718501762219,15.3422,144.7,144.63,15.1092]
[1718501762514,5.62,144.67,144.63,15.1092]
[1718501762713,5.62,144.66,144.63,15.1092]
[1718501763686,7.6713,144.7,144.63,15.1092]
[1718501763900,5.62,144.67,144.63,15.1092]
[1718501764118,5.62,144.68,144.63,15.1092]
[1718501764306,31.5689,144.72,144.63,15.1092]
[1718501764307,8.5583,144.72,144.63,20.7292]
[1718501764621,5.62,144.69,144.63,20.7292]
[1718501767708,5.62,144.68,144.63,15.1092]
[1718501768019,5.62,144.67,144.61,5.62]
[1718501768495,5.62,144.66,144.6,5.62]
[1718501769325,5.62,144.65,144.59,15.2792]
[1718501769529,25.5739,144.68,144.59,20.8992]
[1718501769694,5.62,144.64,144.59,20.8992]
[1718501770390,23.521,144.69,144.58,6.6634]
[1718501770391,5.62,144.63,144.58,6.6634]
[1718501770589,5.62,144.62,144.58,6.6634]
[1718501771706,5.62,144.61,144.56,5.62]
[1718501771893,5.62,144.61,144.55,15.1092]
[1718501772098,5.1161,144.64,144.55,15.1092]
[1718501772099,5.62,144.6,144.55,15.1092]
[1718501772817,41.5119,144.64,144.55,15.1092]
[1718501772818,5.62,144.59,144.55,15.1092]
[1718501774820,5.62,144.57,144.53,0.8597532]
[1718501776019,0.17,144.61,144.53,0.8597532]
[1718501776220,5.62,144.58,144.53,0.8597532]
[1718501781834,0.17,144.61,144.53,6.4797532]
[1718501782132,5.62,144.59,144.53,6.4797532]
[1718501782736,5.1169,144.62,144.54,5.62]
[1718501783038,15.9308,144.64,144.53,1.0297532]
[1718501783039,23.6052,144.64,144.53,1.0297532]
[1718501783213,41.5117,144.64,144.56,5.62]
[1718501783413,5.62,144.62,144.56,5.62]
[1718501784454,10.2319,144.65,144.54,0.17]
[1718501784455,2.558,144.65,144.57,27.8374]
[1718501784625,5.62,144.64,144.58,5.62]
[1718501786037,8.1781,144.64,144.58,5.62]
[1718501786856,20.9685,144.64,144.58,5.62]
[1718501787034,5.62,144.63,144.57,22.2174]
[1718501787236,5.62,144.63,144.57,27.8374]
[1718501788552,5.62,144.63,144.58,5.62]
[1718501788864,2.5577,144.66,144.57,22.2174]
[1718501789149,5.62,144.66,144.6,5.62]
[1718501789460,2.5575,144.67,144.61,5.62]
[1718501789628,5.62,144.66,144.58,0.17]
[1718501789823,2.5575,144.67,144.61,5.62]
[1718501790031,5.62,144.66,144.61,5.62]
[1718501790664,5.62,144.66,144.6,5.62]
[1718501793958,7.6724,144.68,144.6,5.62]
[1718501794260,2.5575,144.68,144.6,5.62]
[1718501794459,15.9308,144.7,144.61,5.62]
[1718501794460,5.62,144.67,144.61,5.62]
[1718501794633,5.62,144.67,144.62,21.472]
[1718501794954,5.62,144.66,144.62,15.852]
[1718501796137,5.62,144.64,144.58,15.852]
[1718501796478,5.62,144.63,144.58,21.472]
[1718501797941,5.62,144.64,144.58,21.472]
[1718501800877,5.62,144.63,144.58,15.852]
[1718501801390,5.62,144.62,144.58,15.852]
[1718501801960,5.62,144.63,144.58,15.852]
[1718501802838,5.62,144.64,144.58,21.472]
[1718501803762,5.62,144.64,144.58,15.852]
[1718501803976,5.62,144.64,144.58,21.472]
[1718501804259,5.62,144.62,144.54,16.022]
[1718501804464,5.62,144.62,144.56,5.62]
[1718501809778,5.62,144.62,144.54,16.022]
[1718501810273,5.62,144.62,144.56,5.62]
[1718501814754,5.62,144.61,144.56,5.62]
[1718501815866,8.9596,144.67,144.54,16.022]
[1718501816087,20.0,144.66,144.58,5.62]
[1718501816280,5.62,144.64,144.58,5.62]
[1718501817084,5.62,144.64,144.55,6.13]
[1718501817085,5.62,144.63,144.56,0.17]
[1718501817265,5.62,144.63,144.57,5.62]
[1718501820772,45.5775,144.66,144.54,15.852]
[1718501820773,5.62,144.61,144.54,15.852]
[1718501820974,5.62,144.6,144.54,21.472]
[1718501821578,5.62,144.59,144.54,21.472]
[1718501822658,5.62,144.6,144.54,21.472]
[1718501823487,5.62,144.61,144.55,5.62]
[1718501824396,2.5581,144.64,144.56,5.62]
[1718501824598,5.62,144.62,144.56,5.62]
[1718501826538,20.0,144.64,144.56,5.62]
[1718501826693,5.62,144.63,144.57,5.62]
[1718501828308,22.558,144.64,144.57,5.62]
[1718501828611,5.62,144.63,144.57,5.62]
[1718501831698,2.5577,144.66,144.6,5.62]
[1718501831902,5.62,144.65,144.6,5.62]
[1718501832124,5.62,144.66,144.6,5.62]
[1718501832806,8.1777,144.66,144.6,5.62]
[1718501833329,5.62,144.66,144.6,5.62]
[1718501833505,7.6718,144.69,144.62,5.62]
[1718501833712,5.62,144.68,144.62,11.7564]
[1718501834512,8.1773,144.68,144.62,11.7564]
[1718501835427,5.62,144.68,144.62,11.7564]
[1718501835635,5.62,144.68,144.63,5.62]
[1718501836626,7.6717,144.69,144.63,5.62]
[1718501836943,13.2917,144.69,144.63,5.62]
[1718501838447,15.2266,144.75,144.62,6.8164]
[1718501838746,13.2905,144.71,144.66,15.6252]
[1718501839714,20.961,144.71,144.66,15.6252]
[1718501839913,7.671,144.7,144.66,15.6252]
[1718501840212,8.1774,144.68,144.62,27.3816]
[1718501840413,23.0117,144.71,144.62,27.3816]
[1718501840650,5.62,144.69,144.64,5.62]
[1718501841020,5.62,144.7,144.64,5.62]
[1718501841352,7.6708,144.71,144.64,5.62]
[1718501841522,7.6705,144.71,144.65,5.62]
[1718501841841,13.2905,144.71,144.65,5.62]
[1718501842420,7.6705,144.71,144.66,5.62]
[1718501842629,8.1769,144.71,144.66,5.62]
[1718501843437,13.291,144.7,144.63,0.68]
[1718501843616,8.1772,144.69,144.64,5.62]
[1718501843817,13.2916,144.69,144.63,5.79]
[1718501844232,8.1772,144.69,144.63,5.79]
[1718501844621,13.2915,144.69,144.63,5.79]
[1718501844824,5.62,144.69,144.63,5.79]
[1718501845823,5.62,144.68,144.62,27.3816]
[1718501846229,5.62,144.67,144.62,27.3816]
[1718501847322,5.62,144.68,144.62,27.3816]
[1718501847741,5.62,144.68,144.63,5.62]
[1718501848719,5.62,144.68,144.62,27.3816]
[1718501848954,5.62,144.66,144.62,21.7616]
[1718501849128,5.62,144.66,144.62,15.6252]
[1718501849323,5.62,144.67,144.62,21.2452]
[1718501849537,5.62,144.68,144.62,21.2452]
[1718501851646,25.5702,144.7,144.62,21.2452]
[1718501851847,5.62,144.68,144.62,21.2452]
[1718501852444,2.5571,144.69,144.62,21.2452]
[1718501852636,5.62,144.67,144.62,21.2452]
[1718501853149,5.62,144.67,144.62,15.6252]
[1718501855345,5.62,144.67,144.62,21.2452]
[1718501855524,5.62,144.68,144.62,21.2452]
[1718501856149,5.62,144.68,144.63,5.62]
[1718501857247,32.1047,144.71,144.63,5.62]
[1718501857452,25.5694,144.71,144.63,5.62]
[1718501857631,5.62,144.69,144.63,5.62]
[1718501858472,5.62,144.69,144.62,15.6252]
[1718501858771,2.557,144.7,144.63,5.62]
[1718501859057,5.62,144.69,144.63,5.62]
[1718501861048,5.62,144.68,144.62,21.2452]
[1718501861253,5.62,144.68,144.59,6.1364]
[1718501861254,5.62,144.65,144.59,21.1923]
[1718501861435,5.62,144.64,144.59,21.1923]
[1718501861638,5.62,144.63,144.59,21.1923]
[1718501863149,5.62,144.65,144.59,21.1923]
[1718501863367,23.0155,144.69,144.61,5.62]
[1718501863573,5.62,144.67,144.61,5.62]
[1718501864544,2.5575,144.67,144.6,5.62]
[1718501864742,5.62,144.65,144.6,5.62]
[1718501865040,5.62,144.65,144.59,26.8123]
[1718501865361,7.6732,144.66,144.59,26.8123]
[1718501865664,2.5575,144.67,144.59,26.8123]
[1718501865865,5.62,144.65,144.59,26.8123]
[1718501866035,5.62,144.64,144.59,21.1923]
[1718501867568,25.5758,144.67,144.59,21.1923]
[1718501867752,7.6721,144.68,144.59,26.8123]
[1718501867960,5.62,144.65,144.6,5.62]
[1718501869384,5.62,144.66,144.6,5.62]
[1718501870880,5.62,144.66,144.61,5.62]
[1718501872085,5.62,144.67,144.61,5.62]
[1718501872379,5.62,144.67,144.62,5.62]
[1718501873855,7.6711,144.7,144.62,5.62]
[1718501874063,17.8986,144.71,144.63,5.62]
[1718501874064,5.62,144.69,144.63,5.62]
[1718501874260,5.62,144.69,144.64,15.1223]
[1718501874875,5.62,144.68,144.64,15.1223]
[1718501875084,5.62,144.67,144.64,15.1223]
[1718501875457,5.62,144.68,144.64,15.1223]
[1718501879769,7.6712,144.7,144.64,15.1223]
[1718501879955,5.62,144.68,144.64,15.1223]
[1718501880578,5.62,144.69,144.64,15.1223]
[1718501881583,23.0124,144.71,144.64,15.1223]
[1718501881779,5.62,144.68,144.64,15.1223]
[1718501882994,5.62,144.67,144.61,0.17]
[1718501883191,5.62,144.67,144.6,15.1223]
[1718501883375,5.62,144.67,144.61,5.62]
[1718501883775,5.62,144.66,144.6,20.7423]
[1718501884993,5.62,144.65,144.6,15.1223]
[1718501885197,5.62,144.65,144.6,20.7423]
[1718501885690,5.62,144.65,144.6,15.1223]
[1718501889980,5.62,144.64,144.6,15.1223]
[1718501890907,2.5573,144.68,144.56,15.4882]
[1718501890908,5.62,144.63,144.56,15.4882]
[1718501891085,5.62,144.62,144.56,21.1082]
[1718501891587,5.62,144.63,144.57,5.62]
[1718501894278,5.62,144.62,144.56,21.1082]
[1718501894707,5.62,144.61,144.56,21.1082]
[1718501895274,5.62,144.61,144.56,15.4882]
[1718501895483,5.62,144.61,144.56,21.1082]
[1718501895779,5.62,144.61,144.56,15.4882]
[1718501895986,5.62,144.59,144.56,15.4882]
[1718501897200,5.62,144.6,144.56,15.4882]
[1718501897593,5.62,144.61,144.56,15.4882]
[1718501899587,5.62,144.6,144.56,15.4882]
[1718501899785,5.62,144.59,144.56,15.4882]
[1718501900320,5.62,144.59,144.55,6.1633]
[1718501900712,5.62,144.59,144.53,21.9679532]
[1718501906913,5.62,144.58,144.53,21.9679532]
[1718501907413,5.62,144.58,144.53,16.3479532]
[1718501908612,5.62,144.58,144.53,21.9679532]
[1718501915017,5.62,144.59,144.53,21.9679532]
[1718501915196,23.2164,144.63,144.53,21.9679532]
[1718501915197,5.62,144.6,144.54,5.62]
[1718501915397,23.2164,144.63,144.53,21.9679532]
[1718501915398,5.62,144.59,144.53,21.9679532]
[1718501915991,23.2163,144.63,144.53,21.9679532]
[1718501916187,5.62,144.59,144.53,21.9679532]
[1718501919425,2.7282,144.64,144.55,5.62]
[1718501919603,5.62,144.61,144.55,5.62]
[1718501919927,5.62,144.62,144.53,16.3479532]
[1718501920098,5.62,144.61,144.55,5.62]
[1718501920516,5.62,144.6,144.55,5.62]
[1718501923312,5.62,144.6,144.54,5.96]
[1718501924225,17.9091,144.62,144.53,16.3479532]
[1718501924421,5.62,144.58,144.53,16.3479532]
[1718501925923,5.62,144.59,144.53,21.9679532]
[1718501937215,0.34,144.64,144.54,0.17]
[1718501937428,25.751,144.64,144.56,5.62]
[1718501937634,5.62,144.61,144.56,5.62]
[1718501938227,5.62,144.6,144.54,5.96]
[1718501938617,15.3518,144.61,144.53,21.9679532]
[1718501938821,5.62,144.58,144.53,16.3479532]
[1718501940325,5.62,144.58,144.53,21.9679532]
[1718501945413,7.6758,144.61,144.53,16.3479532]
[1718501945414,5.62,144.57,144.53,16.3479532]
[1718501946145,5.62,144.56,144.53,16.3479532]
[1718501948360,5.62,144.57,144.53,16.3479532]
[1718501950636,5.62,144.56,144.53,16.3479532]
[1718501950871,5.62,144.56,144.53,0.8597532]
[1718501951049,2.559,144.59,144.53,0.8597532]
[1718501951244,5.62,144.56,144.53,0.8597532]
[1718501957344,5.62,144.57,144.53,0.8597532]
[1718501957545,5.62,144.58,144.53,0.8597532]
[1718501961156,2.5589,144.59,144.53,0.8597532]
[1718501961360,25.588,144.6,144.53,0.8597532]
[1718501961565,5.62,144.58,144.53,0.8597532]
[1718501962249,37.935,144.62,144.53,0.8597532]
[1718501962443,2.5586,144.61,144.54,22.0363]
[1718501962650,5.62,144.6,144.54,22.0363]
[1718501963372,5.62,144.61,144.55,5.62]
[1718501963575,7.6743,144.64,144.57,5.62]
[1718501963887,5.62,144.63,144.57,35.62]
[1718501964163,15.3485,144.64,144.58,1.3803106]
[1718501964164,2.5581,144.64,144.58,1.3803106]
[1718501964380,5.62,144.63,144.58,1.3803106]
[1718501964747,5.62,144.63,144.57,5.62]
[1718501965173,8.1782,144.63,144.57,5.62]
[1718501965554,5.62,144.62,144.57,5.62]
[1718501966059,5.62,144.62,144.58,30.0]
[1718501968981,5.62,144.61,144.58,30.0]
[1718501970376,17.9057,144.65,144.58,30.0]
[1718501970563,5.62,144.62,144.58,30.0]
[1718501970891,5.62,144.63,144.58,35.62]
[1718501973661,2.5581,144.64,144.59,15.9087]
[1718501973859,5.62,144.64,144.59,51.5287]
[1718501974059,31.1998,144.65,144.59,51.5287]
[1718501974263,7.6738,144.65,144.59,51.5287]
[1718501974590,5.62,144.65,144.59,51.5287]
[1718501974756,8.1779,144.65,144.59,51.5287]
[1718501974956,13.2937,144.65,144.59,51.5287]
[1718501975384,20.9674,144.65,144.59,51.5287]
[1718501976758,5.62,144.64,144.59,51.5287]
[1718501976963,8.178,144.64,144.59,51.5287]
[1718501977173,8.178,144.64,144.59,21.5287]
[1718501977781,5.62,144.64,144.59,21.5287]
[1718501978167,8.1781,144.64,144.59,21.5287]
[1718501978788,5.62,144.64,144.59,21.5287]
[1718501980679,5.62,144.64,144.59,15.9087]
[1718501984798,5.62,144.65,144.59,21.5287]
[1718501986281,7.6727,144.67,144.59,21.5287]
[1718501986476,5.62,144.65,144.59,21.5287]
[1718501987299,5.62,144.66,144.6,5.62]
[1718501988793,8.1777,144.66,144.6,5.62]
[1718501989180,10.7354,144.66,144.6,5.62]
[1718501989383,5.62,144.64,144.59,21.5287]
[1718501989569,8.178,144.64,144.59,21.5287]
[1718501989770,8.178,144.64,144.59,15.9087]
[1718501990169,8.178,144.64,144.57,6.0385]
[1718501990170,5.62,144.61,144.57,6.0385]
[1718501992396,5.62,144.62,144.57,11.6585]
[1718501992699,5.62,144.63,144.57,11.6585]
[1718501994878,25.578,144.66,144.58,5.62]
[1718501995181,5.62,144.64,144.59,5.62]
[1718501995998,8.178,144.64,144.59,5.62]
[1718501996383,5.62,144.62,144.57,6.0385]
[1718501996588,5.62,144.61,144.57,6.0385]
[1718501996791,25.5828,144.63,144.57,6.0385]
[1718501996792,5.62,144.62,144.57,6.0385]
[1718501996985,5.62,144.62,144.57,11.6585]
[1718501997606,5.62,144.63,144.57,11.6585]
[1718501999283,8.1782,144.63,144.57,11.6585]
[1718501999485,5.62,144.62,144.57,11.6585]
[1718502000204,5.62,144.62,144.57,6.0385]
[1718502002595,8.1785,144.62,144.57,6.0385]
[1718502002798,5.62,144.61,144.57,6.0385]
[1718502003832,5.62,144.62,144.57,6.0385]
[1718502004382,5.62,144.62,144.57,11.6585]
[1718502006851,5.62,144.62,144.57,6.0385]
[1718502007130,5.62,144.61,144.57,6.0385]
[1718502007804,7.6748,144.63,144.57,6.0385]
[1718502007805,5.62,144.6,144.57,6.0385]
[1718502008721,5.62,144.6,144.55,16.5411]
[1718502009106,5.62,144.59,144.55,16.5411]
[1718502010526,5.62,144.6,144.55,16.5411]
[1718502015444,5.62,144.6,144.55,22.1611]
[1718502015746,5.62,144.61,144.55,22.1611]
[1718502016405,0.17,144.65,144.55,22.1611]
[1718502016733,5.62,144.64,144.58,5.62]
[1718502018407,22.5579,144.65,144.58,5.62]
[1718502018608,5.62,144.63,144.58,5.62]
[1718502020828,7.6742,144.64,144.57,11.7662]